[Event "*** Titled Tuesday Blitz"]
[Site "Chess.com"]
[Date "2020.10.20"]
[Round "3"]
[White "Smirnov_Pavel"]
[Black "mirceaparligras"]
[Result "1-0"]
[WhiteElo "2875"]
[BlackElo "2656"]
[TimeControl "180+1"]
[EndTime "10:28:03 PDT"]
[Termination "Smirnov_Pavel won by resignation"]

1. d4 {[%clk 0:02:58.7]} 1... Nf6 {[%clk 0:02:59.3]} 2. c4 {[%clk 0:02:58.3]}
2... e6 {[%clk 0:02:58.8]} 3. Nf3 {[%clk 0:02:58.7]} 3... c5 {[%clk 0:02:58.5]}
4. g3 {[%clk 0:02:54.9]} 4... cxd4 {[%clk 0:02:56.1]} 5. Nxd4 {[%clk 0:02:55.8]}
5... Qc7 {[%clk 0:02:56]} 6. Nc3 {[%clk 0:02:54.5]} 6... a6 {[%clk 0:02:55.5]}
7. Bg2 {[%clk 0:02:54.8]} 7... Qxc4 {[%clk 0:02:55.2]} 8. O-O {[%clk 0:02:54.8]}
8... Nc6 {[%clk 0:02:49.2]} 9. Nb3 {[%clk 0:02:54.3]} 9... Be7 {[%clk 0:02:37]}
10. Bf4 {[%clk 0:02:52.5]} 10... d5 {[%clk 0:02:25.6]} 11. Rc1 {[%clk 0:02:52]}
11... Qb4 {[%clk 0:02:18.6]} 12. a3 {[%clk 0:02:51.4]} 12... Qb6 {[%clk
0:02:17.3]} 13. e4 {[%clk 0:02:50.6]} 13... dxe4 {[%clk 0:01:57.6]} 14. Be3
{[%clk 0:02:45.6]} 14... Qd8 {[%clk 0:01:48.6]} 15. Qxd8+ {[%clk 0:02:44.6]}
15... Bxd8 {[%clk 0:01:47.9]} 16. Nxe4 {[%clk 0:02:45.5]} 16... Nxe4 {[%clk
0:01:46.7]} 17. Bxe4 {[%clk 0:02:44]} 17... O-O {[%clk 0:01:38.8]} 18. Bc5
{[%clk 0:02:34.2]} 18... Re8 {[%clk 0:01:35]} 19. Rfd1 {[%clk 0:02:33.1]} 19...
Bf6 {[%clk 0:01:30.8]} 20. Nd4 {[%clk 0:02:11]} 20... Nxd4 {[%clk 0:01:26.9]}
21. Bxd4 {[%clk 0:02:11.9]} 21... Bxd4 {[%clk 0:01:26.9]} 22. Rxd4 {[%clk
0:02:12.8]} 22... e5 {[%clk 0:01:21.1]} 23. Rd6 {[%clk 0:02:11.8]} 23... Bh3
{[%clk 0:01:06.8]} 24. Bxb7 {[%clk 0:01:49.6]} 24... Rad8 {[%clk 0:01:00.5]} 25.
Rxd8 {[%clk 0:01:45.8]} 25... Rxd8 {[%clk 0:00:59.5]} 26. Bxa6 {[%clk 0:01:46]}
26... f5 {[%clk 0:00:51.9]} 27. Rc8 {[%clk 0:01:42.3]} 27... Rxc8 {[%clk
0:00:48.6]} 28. Bxc8 {[%clk 0:01:43.2]} 28... Kf7 {[%clk 0:00:48.7]} 29. a4
{[%clk 0:01:39]} 29... Ke7 {[%clk 0:00:48.6]} 30. a5 {[%clk 0:01:38.7]} 30...
Kd8 {[%clk 0:00:49.1]} 31. Be6 {[%clk 0:01:35.2]} 31... Kc7 {[%clk 0:00:46.2]}
32. b4 {[%clk 0:01:35.1]} 32... g6 {[%clk 0:00:45.4]} 33. b5 {[%clk 0:01:32.9]}
33... Bg4 {[%clk 0:00:45.7]} 34. b6+ {[%clk 0:01:31.9]} 34... Kb7 {[%clk
0:00:45]} 35. Bd5+ {[%clk 0:01:22.7]} 35... Ka6 {[%clk 0:00:45]} 36. f3 {[%clk
0:01:22.2]} 36... Bh3 {[%clk 0:00:40.7]} 37. Bc4+ {[%clk 0:01:18.2]} 37... Kb7
{[%clk 0:00:39.9]} 38. Bg8 {[%clk 0:01:16.6]} 38... h6 {[%clk 0:00:36.8]} 39.
Bf7 {[%clk 0:01:14.7]} 39... g5 {[%clk 0:00:36.9]} 40. Be6 {[%clk 0:01:14.5]}
40... h5 {[%clk 0:00:27.7]} 41. Bd7 {[%clk 0:01:13.2]} 41... h4 {[%clk
0:00:25.1]} 42. gxh4 {[%clk 0:01:12]} 42... gxh4 {[%clk 0:00:25.1]} 43. Be6
{[%clk 0:01:11.6]} 43... Kc6 {[%clk 0:00:23.6]} 44. Bc8 {[%clk 0:01:10.4]} 1-0

[Event "*** Titled Tuesday Blitz"]
[Site "Chess.com"]
[Date "2020.10.20"]
[Round "3"]
[White "SanchezKelvin"]
[Black "albi1999"]
[Result "1-0"]
[WhiteElo "2401"]
[BlackElo "2598"]
[TimeControl "180+1"]
[EndTime "10:28:03 PDT"]
[Termination "SanchezKelvin won by resignation"]

1. d4 {[%clk 0:03:00.9]} 1... Nf6 {[%clk 0:02:51.3]} 2. c4 {[%clk 0:02:58.9]}
2... e6 {[%clk 0:02:51.8]} 3. Nf3 {[%clk 0:02:58.7]} 3... d5 {[%clk 0:02:51.6]}
4. Nc3 {[%clk 0:02:58.5]} 4... dxc4 {[%clk 0:02:51.5]} 5. e3 {[%clk 0:02:57.1]}
5... a6 {[%clk 0:02:44]} 6. Bxc4 {[%clk 0:02:52.1]} 6... b5 {[%clk 0:02:43.8]}
7. Bb3 {[%clk 0:02:52.3]} 7... Bb7 {[%clk 0:02:42.7]} 8. O-O {[%clk 0:02:51.9]}
8... Nbd7 {[%clk 0:02:39.5]} 9. Qe2 {[%clk 0:02:49.2]} 9... c5 {[%clk
0:02:39.5]} 10. dxc5 {[%clk 0:02:48.3]} 10... Nxc5 {[%clk 0:02:37.5]} 11. Rd1
{[%clk 0:02:46.3]} 11... Qc7 {[%clk 0:02:25.9]} 12. Bc2 {[%clk 0:02:43]} 12...
Bd6 {[%clk 0:02:14.1]} 13. h3 {[%clk 0:02:37.6]} 13... O-O {[%clk 0:02:11.6]}
14. a3 {[%clk 0:02:27.1]} 14... Rfd8 {[%clk 0:02:10.6]} 15. b4 {[%clk
0:02:24.5]} 15... Ncd7 {[%clk 0:02:10.5]} 16. Bb2 {[%clk 0:02:23.9]} 16... Ne5
{[%clk 0:02:10.3]} 17. Nxe5 {[%clk 0:02:01.5]} 17... Bxe5 {[%clk 0:02:11.2]} 18.
Rac1 {[%clk 0:02:01.3]} 18... Rxd1+ {[%clk 0:02:07.2]} 19. Bxd1 {[%clk
0:01:57.7]} 19... Qc6 {[%clk 0:01:34.6]} 20. f4 {[%clk 0:01:52.4]} 20... Bb8
{[%clk 0:01:30.6]} 21. Bb3 {[%clk 0:01:41.7]} 21... Qb6 {[%clk 0:01:20.7]} 22.
Nd1 {[%clk 0:01:35.1]} 22... Bd5 {[%clk 0:01:15]} 23. Bd4 {[%clk 0:01:32.3]}
23... Qb7 {[%clk 0:01:14.2]} 24. Bc2 {[%clk 0:01:28.6]} 24... Ba7 {[%clk
0:00:52.4]} 25. Bxf6 {[%clk 0:01:19.8]} 25... gxf6 {[%clk 0:00:53.3]} 26. Qg4+
{[%clk 0:01:17.1]} 26... Kh8 {[%clk 0:00:44]} 27. Qh4 {[%clk 0:01:15.2]} 27...
f5 {[%clk 0:00:36.5]} 28. Qf6+ {[%clk 0:01:05.8]} 28... Kg8 {[%clk 0:00:36.9]}
29. Qg5+ {[%clk 0:01:04.7]} 29... Kf8 {[%clk 0:00:37.4]} 30. Bd3 {[%clk
0:01:00.9]} 30... Rc8 {[%clk 0:00:33.6]} 31. Rxc8+ {[%clk 0:00:59.3]} 31... Qxc8
{[%clk 0:00:34.5]} 32. Qh6+ {[%clk 0:00:56.1]} 32... Kg8 {[%clk 0:00:33.1]} 33.
Qg5+ {[%clk 0:00:55.8]} 33... Kf8 {[%clk 0:00:33.5]} 34. Qh6+ {[%clk 0:00:55.9]}
34... Ke7 {[%clk 0:00:33.7]} 35. Qh4+ {[%clk 0:00:54.8]} 35... Kd6 {[%clk
0:00:31.8]} 36. Kf2 {[%clk 0:00:51.3]} 36... Qc1 {[%clk 0:00:30.8]} 37. Qd8+
{[%clk 0:00:50.2]} 37... Kc6 {[%clk 0:00:27.9]} 38. Qc8+ {[%clk 0:00:49.8]}
38... Kd6 {[%clk 0:00:27]} 39. Qxc1 {[%clk 0:00:49.3]} 1-0

[Event "*** Titled Tuesday Blitz"]
[Site "Chess.com"]
[Date "2020.10.20"]
[Round "3"]
[White "LubovMarkelova"]
[Black "tlomigtlis"]
[Result "1-0"]
[WhiteElo "2257"]
[BlackElo "2561"]
[TimeControl "180+1"]
[EndTime "10:28:03 PDT"]
[Termination "LubovMarkelova won by checkmate"]

1. Nf3 {[%clk 0:02:48.5]} 1... Nf6 {[%clk 0:02:59.8]} 2. c4 {[%clk 0:02:47.4]}
2... c6 {[%clk 0:02:59.9]} 3. d4 {[%clk 0:02:46.2]} 3... d5 {[%clk 0:03:00.4]}
4. e3 {[%clk 0:02:46.8]} 4... Bf5 {[%clk 0:02:59.8]} 5. cxd5 {[%clk 0:02:47]}
5... cxd5 {[%clk 0:02:59.8]} 6. Nc3 {[%clk 0:02:47.5]} 6... Nc6 {[%clk 0:03:00]}
7. Ne5 {[%clk 0:02:47.6]} 7... e6 {[%clk 0:02:58.4]} 8. g4 {[%clk 0:02:46.9]}
8... Nxe5 {[%clk 0:02:56.4]} 9. dxe5 {[%clk 0:02:41.6]} 9... Nxg4 {[%clk
0:02:53.1]} 10. Qa4+ {[%clk 0:02:31.4]} 10... Ke7 {[%clk 0:02:47.9]} 11. Qb4+
{[%clk 0:02:29.5]} 11... Kd7 {[%clk 0:02:47.8]} 12. Qxb7+ {[%clk 0:02:29.5]}
12... Qc7 {[%clk 0:02:45]} 13. Bb5+ {[%clk 0:02:27.4]} 13... Kd8 {[%clk
0:02:36.5]} 14. Qxa8+ {[%clk 0:02:26.3]} 14... Qc8 {[%clk 0:02:36.6]} 15. Qxa7
{[%clk 0:02:12.6]} 15... Nxe5 {[%clk 0:02:35]} 16. Qa5+ {[%clk 0:02:06.9]} 16...
Ke7 {[%clk 0:02:34.2]} 17. Be2 {[%clk 0:01:49]} 17... Kf6 {[%clk 0:02:32.3]} 18.
Bd2 {[%clk 0:01:48.3]} 18... Bd3 {[%clk 0:02:25.5]} 19. Rc1 {[%clk 0:01:41.6]}
19... Bxe2 {[%clk 0:02:24.7]} 20. Kxe2 {[%clk 0:01:42]} 20... Qc4+ {[%clk
0:02:24.3]} 21. Kd1 {[%clk 0:01:36.6]} 21... Nd3 {[%clk 0:02:16]} 22. Nxd5+
{[%clk 0:00:47.3]} 22... Qxd5 {[%clk 0:02:15.6]} 23. Qxd5 {[%clk 0:00:47]} 23...
exd5 {[%clk 0:02:16.5]} 24. Rc6+ {[%clk 0:00:47]} 24... Ke7 {[%clk 0:02:16.2]}
25. Ke2 {[%clk 0:00:43.1]} 25... Ne5 {[%clk 0:02:15.7]} 26. Rc7+ {[%clk
0:00:40.7]} 26... Kd6 {[%clk 0:02:13.7]} 27. Rhc1 {[%clk 0:00:40.1]} 27... Nc4
{[%clk 0:02:11.8]} 28. Ra7 {[%clk 0:00:34.9]} 28... Ke6 {[%clk 0:02:07]} 29. b3
{[%clk 0:00:29.8]} 29... Ne5 {[%clk 0:02:06]} 30. Rc8 {[%clk 0:00:27.4]} 30...
g6 {[%clk 0:01:42.7]} 31. Raa8 {[%clk 0:00:27.6]} 31... Nd7 {[%clk 0:01:29.5]}
32. Bb4 {[%clk 0:00:26.8]} 32... Bxb4 {[%clk 0:01:28.6]} 33. Rxh8 {[%clk
0:00:26.2]} 33... Nf6 {[%clk 0:01:27.5]} 34. a3 {[%clk 0:00:24.9]} 34... Bd6
{[%clk 0:01:26.6]} 35. f3 {[%clk 0:00:24.7]} 35... Bxh2 {[%clk 0:01:24.5]} 36.
a4 {[%clk 0:00:22.9]} 36... Nd7 {[%clk 0:01:23.6]} 37. b4 {[%clk 0:00:21.4]}
37... Nb6 {[%clk 0:01:23.3]} 38. a5 {[%clk 0:00:20.8]} 38... Nxa8 {[%clk
0:01:22.3]} 39. Rxa8 {[%clk 0:00:21.7]} 39... h5 {[%clk 0:01:21.7]} 40. a6
{[%clk 0:00:22]} 40... Bd6 {[%clk 0:01:21.6]} 41. a7 {[%clk 0:00:21.5]} 41...
Bxb4 {[%clk 0:01:18.2]} 42. Re8+ {[%clk 0:00:21.3]} 42... Kf6 {[%clk 0:01:18.4]}
43. a8=Q {[%clk 0:00:21.2]} 43... Bd6 {[%clk 0:01:18.4]} 44. Qxd5 {[%clk
0:00:21.2]} 44... Bg3 {[%clk 0:01:18.6]} 45. f4 {[%clk 0:00:20.3]} 45... Bh4
{[%clk 0:01:16.8]} 46. Qe5# {[%clk 0:00:20.5]} 1-0

[Event "*** Titled Tuesday Blitz"]
[Site "Chess.com"]
[Date "2020.10.20"]
[Round "3"]
[White "ural58"]
[Black "TV27"]
[Result "1-0"]
[WhiteElo "2336"]
[BlackElo "2055"]
[TimeControl "180+1"]
[EndTime "10:28:05 PDT"]
[Termination "ural58 won on time"]

1. e4 {[%clk 0:03:00.9]} 1... c5 {[%clk 0:02:59.1]} 2. b3 {[%clk 0:03:00.6]}
2... Nc6 {[%clk 0:02:55.6]} 3. Bb2 {[%clk 0:02:59.3]} 3... e5 {[%clk 0:02:53.5]}
4. f4 {[%clk 0:02:58.7]} 4... d6 {[%clk 0:02:51.2]} 5. Qf3 {[%clk 0:02:57.6]}
5... Nf6 {[%clk 0:02:36.3]} 6. Bb5 {[%clk 0:02:56.9]} 6... Qb6 {[%clk
0:02:02.2]} 7. c4 {[%clk 0:02:51.8]} 7... Be7 {[%clk 0:01:55.2]} 8. Nc3 {[%clk
0:02:51.1]} 8... O-O {[%clk 0:01:53.1]} 9. Bxc6 {[%clk 0:02:51.3]} 9... bxc6
{[%clk 0:01:52.4]} 10. Nge2 {[%clk 0:02:36.6]} 10... Bg4 {[%clk 0:01:34.6]} 11.
Qe3 {[%clk 0:02:33]} 11... d5 {[%clk 0:01:31.4]} 12. exd5 {[%clk 0:02:20.4]}
12... cxd5 {[%clk 0:01:24.9]} 13. Na4 {[%clk 0:02:17.3]} 13... Qc6 {[%clk
0:00:49.3]} 14. fxe5 {[%clk 0:02:11]} 14... Ne4 {[%clk 0:00:48.3]} 15. d3 {[%clk
0:02:02.4]} 15... Bg5 {[%clk 0:00:41.1]} 16. Nf4 {[%clk 0:01:59.5]} 16... d4
{[%clk 0:00:35.1]} 17. Qxe4 {[%clk 0:01:59.5]} 17... Qxe4+ {[%clk 0:00:34.6]}
18. dxe4 {[%clk 0:01:59.7]} 18... Bxf4 {[%clk 0:00:34.4]} 19. Nxc5 {[%clk
0:01:59.7]} 19... Bxe5 {[%clk 0:00:30.9]} 20. Nd3 {[%clk 0:01:59.8]} 20... Rfe8
{[%clk 0:00:29.7]} 21. Kd2 {[%clk 0:01:54]} 21... Bf6 {[%clk 0:00:27.9]} 22.
Rae1 {[%clk 0:01:47.9]} 22... a5 {[%clk 0:00:25.9]} 23. h3 {[%clk 0:01:46.9]}
23... Bg5+ {[%clk 0:00:25.2]} 24. Kc2 {[%clk 0:01:46.5]} 24... Bd7 {[%clk
0:00:23.1]} 25. Bxd4 {[%clk 0:01:46.5]} 25... a4 {[%clk 0:00:22.2]} 26. b4
{[%clk 0:01:46.3]} 26... Rac8 {[%clk 0:00:20.3]} 27. c5 {[%clk 0:01:46.1]} 27...
Bb5 {[%clk 0:00:19.5]} 28. Ne5 {[%clk 0:01:28]} 28... Rcd8 {[%clk 0:00:17.2]}
29. Nf3 {[%clk 0:01:24.1]} 29... Bf6 {[%clk 0:00:12.4]} 30. Bxf6 {[%clk
0:01:23.5]} 30... Bd3+ {[%clk 0:00:11.2]} 31. Kc3 {[%clk 0:01:23.4]} 31... gxf6
{[%clk 0:00:11.1]} 32. e5 {[%clk 0:01:23.4]} 32... Bb5 {[%clk 0:00:06.3]} 33.
Rd1 {[%clk 0:01:19.3]} 33... fxe5 {[%clk 0:00:04.6]} 34. Rxd8 {[%clk 0:01:19]}
34... Rxd8 {[%clk 0:00:04.7]} 35. Nxe5 {[%clk 0:01:19.5]} 35... Re8 {[%clk
0:00:04.7]} 36. Re1 {[%clk 0:01:18.8]} 36... f6 {[%clk 0:00:04]} 37. Nf3 {[%clk
0:01:18.9]} 37... Rd8 {[%clk 0:00:02.2]} 38. Nd4 {[%clk 0:01:18.9]} 38... Rf8
{[%clk 0:00:01.4]} 39. Nxb5 {[%clk 0:01:18.4]} 1-0

[Event "*** Titled Tuesday Blitz"]
[Site "Chess.com"]
[Date "2020.10.20"]
[Round "3"]
[White "JoachimMouhamad"]
[Black "pedro_nascimento85"]
[Result "1-0"]
[WhiteElo "2310"]
[BlackElo "2004"]
[TimeControl "180+1"]
[EndTime "10:28:06 PDT"]
[Termination "JoachimMouhamad won by resignation"]

1. e4 {[%clk 0:03:00.9]} 1... e6 {[%clk 0:02:58.2]} 2. d4 {[%clk 0:02:56.8]}
2... d5 {[%clk 0:02:57.3]} 3. Nc3 {[%clk 0:02:56.1]} 3... Bb4 {[%clk 0:02:55.8]}
4. e5 {[%clk 0:02:55.3]} 4... Ne7 {[%clk 0:02:54.5]} 5. a3 {[%clk 0:02:53]} 5...
Bxc3+ {[%clk 0:02:53.5]} 6. bxc3 {[%clk 0:02:53.2]} 6... c5 {[%clk 0:02:54.4]}
7. Qg4 {[%clk 0:02:49.3]} 7... cxd4 {[%clk 0:02:48.5]} 8. cxd4 {[%clk 0:02:46]}
8... Qc7 {[%clk 0:02:48.3]} 9. Bd2 {[%clk 0:02:40.1]} 9... Qxc2 {[%clk
0:02:41.8]} 10. Ne2 {[%clk 0:01:51]} 10... Qg6 {[%clk 0:02:30.5]} 11. Qh3 {[%clk
0:01:45.5]} 11... Nbc6 {[%clk 0:02:24.2]} 12. Rc1 {[%clk 0:01:38.5]} 12... Bd7
{[%clk 0:02:22.5]} 13. f3 {[%clk 0:01:35.6]} 13... Nf5 {[%clk 0:02:14.9]} 14.
Bc3 {[%clk 0:01:23.5]} 14... O-O {[%clk 0:01:38.6]} 15. Kf2 {[%clk 0:01:22.9]}
15... f6 {[%clk 0:01:36.6]} 16. Qg4 {[%clk 0:01:11.3]} 16... fxe5 {[%clk
0:01:34.1]} 17. Qxg6 {[%clk 0:01:10.8]} 17... hxg6 {[%clk 0:01:33.6]} 18. dxe5
{[%clk 0:01:10.8]} 18... d4 {[%clk 0:01:32.4]} 19. Bb4 {[%clk 0:01:11.1]} 19...
Rf7 {[%clk 0:01:26.7]} 20. f4 {[%clk 0:01:03.3]} 20... Rc8 {[%clk 0:01:21]} 21.
Bd2 {[%clk 0:00:59]} 21... g5 {[%clk 0:01:15.7]} 22. g3 {[%clk 0:00:56.7]} 22...
gxf4 {[%clk 0:01:14.9]} 23. gxf4 {[%clk 0:00:49.4]} 23... Nh6 {[%clk 0:01:06.9]}
24. Bh3 {[%clk 0:00:46.9]} 24... Nxe5 {[%clk 0:01:05.6]} 25. Rxc8+ {[%clk
0:00:46.4]} 25... Bxc8 {[%clk 0:01:02.6]} 26. Nxd4 {[%clk 0:00:44.4]} 26...
Neg4+ {[%clk 0:00:50.8]} 27. Kg3 {[%clk 0:00:35.9]} 27... e5 {[%clk 0:00:51.1]}
28. fxe5 {[%clk 0:00:33.5]} 28... Nf2 {[%clk 0:00:48.1]} 29. Bxc8 {[%clk
0:00:27.5]} 29... Nxh1+ {[%clk 0:00:47.4]} 30. Kg2 {[%clk 0:00:27.6]} 30... Rf2+
{[%clk 0:00:45.7]} 31. Kxh1 {[%clk 0:00:27.9]} 31... Rxd2 {[%clk 0:00:45.2]} 32.
Nf3 {[%clk 0:00:23.7]} 32... Ra2 {[%clk 0:00:39.1]} 33. Be6+ {[%clk 0:00:23.5]}
1-0

[Event "*** Titled Tuesday Blitz"]
[Site "Chess.com"]
[Date "2020.10.20"]
[Round "3"]
[White "lacafi"]
[Black "Zmeeed63"]
[Result "0-1"]
[WhiteElo "2120"]
[BlackElo "2355"]
[TimeControl "180+1"]
[EndTime "10:28:08 PDT"]
[Termination "Zmeeed63 won by resignation"]

1. d4 {[%clk 0:03:00.9]} 1... Nf6 {[%clk 0:02:57.5]} 2. Nf3 {[%clk 0:03:01.1]}
2... e6 {[%clk 0:02:56.8]} 3. e3 {[%clk 0:03:00.8]} 3... d5 {[%clk 0:02:56.2]}
4. Bd3 {[%clk 0:03:01.2]} 4... Be7 {[%clk 0:02:56.2]} 5. Nbd2 {[%clk 0:03:01.7]}
5... O-O {[%clk 0:02:56.7]} 6. Qe2 {[%clk 0:03:02.3]} 6... c5 {[%clk 0:02:57.1]}
7. c3 {[%clk 0:03:02.2]} 7... b6 {[%clk 0:02:56.7]} 8. O-O {[%clk 0:03:00.1]}
8... Bb7 {[%clk 0:02:57.1]} 9. e4 {[%clk 0:03:00.5]} 9... Nc6 {[%clk 0:02:51.4]}
10. e5 {[%clk 0:02:49.4]} 10... Ne8 {[%clk 0:02:48.6]} 11. Re1 {[%clk
0:02:48.2]} 11... Rc8 {[%clk 0:02:24.1]} 12. Nf1 {[%clk 0:02:45.2]} 12... cxd4
{[%clk 0:02:23.1]} 13. Nxd4 {[%clk 0:02:41.1]} 13... Qd7 {[%clk 0:02:13.2]} 14.
Ng3 {[%clk 0:02:23.7]} 14... Bc5 {[%clk 0:02:03.2]} 15. Qg4 {[%clk 0:02:01.9]}
15... g6 {[%clk 0:02:02.1]} 16. Bh6 {[%clk 0:01:13.6]} 16... Ng7 {[%clk
0:02:01]} 17. Bxg7 {[%clk 0:01:13.8]} 17... Kxg7 {[%clk 0:02:01.9]} 18. Nh5+
{[%clk 0:01:13.3]} 18... Kh8 {[%clk 0:01:52.1]} 19. Nf6 {[%clk 0:01:05.8]} 19...
Qe7 {[%clk 0:01:50.4]} 20. Qh4 {[%clk 0:00:54.5]} 20... h5 {[%clk 0:01:49.1]}
21. Qg5 {[%clk 0:00:54.3]} 21... Kg7 {[%clk 0:01:36.3]} 22. Nxc6 {[%clk
0:00:54.3]} 22... Bxc6 {[%clk 0:01:34.2]} 23. Nxh5+ {[%clk 0:00:54.2]} 23... Kh7
{[%clk 0:01:33.5]} 24. Nf6+ {[%clk 0:00:49.9]} 24... Kg7 {[%clk 0:01:33]} 25. b4
{[%clk 0:00:50.3]} 25... Bxb4 {[%clk 0:01:17.1]} 26. cxb4 {[%clk 0:00:48.2]}
26... Qxb4 {[%clk 0:01:18]} 27. Re3 {[%clk 0:00:36.3]} 27... Rh8 {[%clk
0:01:15.5]} 28. Ng4 {[%clk 0:00:25.5]} 28... Qd4 {[%clk 0:01:02.5]} 29. Qf6+
{[%clk 0:00:24.3]} 29... Kg8 {[%clk 0:01:02.1]} 30. Rf3 {[%clk 0:00:21.2]} 30...
Qxa1+ {[%clk 0:01:00]} 31. Bf1 {[%clk 0:00:21.7]} 31... Rf8 {[%clk 0:00:58.7]}
32. Qe7 {[%clk 0:00:11.6]} 32... Bb5 {[%clk 0:00:53.8]} 33. Nf6+ {[%clk
0:00:11.4]} 33... Kg7 {[%clk 0:00:53.1]} 0-1

[Event "*** Titled Tuesday Blitz"]
[Site "Chess.com"]
[Date "2020.10.20"]
[Round "3"]
[White "coco_crc"]
[Black "MidnightFox"]
[Result "0-1"]
[WhiteElo "2177"]
[BlackElo "2434"]
[TimeControl "180+1"]
[EndTime "10:28:11 PDT"]
[Termination "MidnightFox won by resignation"]

1. e4 {[%clk 0:03:00.9]} 1... e5 {[%clk 0:02:58]} 2. Nf3 {[%clk 0:02:58.1]} 2...
Nc6 {[%clk 0:02:56.3]} 3. c3 {[%clk 0:02:58.2]} 3... Nf6 {[%clk 0:02:54.7]} 4.
d4 {[%clk 0:02:58.3]} 4... d5 {[%clk 0:02:49.8]} 5. Bb5 {[%clk 0:02:39.8]} 5...
Nxe4 {[%clk 0:02:46.5]} 6. Nxe5 {[%clk 0:02:39.2]} 6... Qf6 {[%clk 0:02:44.3]}
7. O-O {[%clk 0:02:35.6]} 7... Be7 {[%clk 0:02:37.3]} 8. Nd2 {[%clk 0:02:30.5]}
8... Nxd2 {[%clk 0:02:32.6]} 9. Bxd2 {[%clk 0:02:31.4]} 9... O-O {[%clk
0:02:33.2]} 10. Nxc6 {[%clk 0:02:30.3]} 10... bxc6 {[%clk 0:02:34.1]} 11. Bd3
{[%clk 0:02:30.5]} 11... Bf5 {[%clk 0:02:32.8]} 12. Bxf5 {[%clk 0:02:29.2]}
12... Qxf5 {[%clk 0:02:33.7]} 13. Re1 {[%clk 0:02:28.2]} 13... Bd6 {[%clk
0:02:32.6]} 14. Qa4 {[%clk 0:02:06]} 14... c5 {[%clk 0:02:15.7]} 15. dxc5 {[%clk
0:01:59.7]} 15... Bxc5 {[%clk 0:02:16]} 16. Be3 {[%clk 0:01:59.8]} 16... Bd6
{[%clk 0:02:13.9]} 17. Rad1 {[%clk 0:01:56.7]} 17... h6 {[%clk 0:02:12.7]} 18.
Qb5 {[%clk 0:01:44.8]} 18... Rfd8 {[%clk 0:02:10.8]} 19. Qd3 {[%clk 0:01:44.2]}
19... Qh5 {[%clk 0:02:07.7]} 20. h3 {[%clk 0:01:40.8]} 20... c6 {[%clk
0:02:06.1]} 21. Bd4 {[%clk 0:01:35.7]} 21... Qg5 {[%clk 0:01:57.1]} 22. Qe3
{[%clk 0:01:26.9]} 22... Bf4 {[%clk 0:01:55.2]} 23. Qe7 {[%clk 0:01:24]} 23...
a5 {[%clk 0:01:53.7]} 24. Qxg5 {[%clk 0:01:19.7]} 24... Bxg5 {[%clk 0:01:54.6]}
25. b3 {[%clk 0:00:58.6]} 25... a4 {[%clk 0:01:53.1]} 26. b4 {[%clk 0:00:58.5]}
26... a3 {[%clk 0:01:52]} 27. g3 {[%clk 0:00:52.1]} 27... Re8 {[%clk 0:01:50.1]}
28. f4 {[%clk 0:00:48.8]} 28... Be7 {[%clk 0:01:49]} 29. Re2 {[%clk 0:00:43.3]}
29... Bd6 {[%clk 0:01:47.6]} 30. Rde1 {[%clk 0:00:42.9]} 30... Rxe2 {[%clk
0:01:47.3]} 31. Rxe2 {[%clk 0:00:43.8]} 31... f6 {[%clk 0:01:47.4]} 32. Re6
{[%clk 0:00:42.4]} 32... Rd8 {[%clk 0:01:47.3]} 33. Bc5 {[%clk 0:00:40.3]} 33...
Bxc5+ {[%clk 0:01:46.3]} 34. bxc5 {[%clk 0:00:41.2]} 34... Rb8 {[%clk
0:01:41.2]} 35. Rxc6 {[%clk 0:00:41.2]} 35... Rb1+ {[%clk 0:01:38.9]} 36. Kg2
{[%clk 0:00:41.6]} 36... Rb2+ {[%clk 0:01:39.8]} 37. Kf3 {[%clk 0:00:40.7]}
37... Rxa2 {[%clk 0:01:40.7]} 38. Ra6 {[%clk 0:00:39.2]} 38... Kf7 {[%clk
0:01:40.3]} 39. Ra7+ {[%clk 0:00:36.8]} 39... Ke6 {[%clk 0:01:40.6]} 40. Rxg7
{[%clk 0:00:32.6]} 40... Rc2 {[%clk 0:01:39.9]} 41. Ra7 {[%clk 0:00:30.8]} 41...
Rxc3+ {[%clk 0:01:40]} 42. Kg4 {[%clk 0:00:31.3]} 42... d4 {[%clk 0:01:39.3]}
43. c6 {[%clk 0:00:30.3]} 43... d3 {[%clk 0:01:39.6]} 44. c7 {[%clk 0:00:28.6]}
44... d2 {[%clk 0:01:38.6]} 45. f5+ {[%clk 0:00:11.1]} 45... Ke5 {[%clk
0:01:36.9]} 46. Ra5+ {[%clk 0:00:08.1]} 46... Ke4 {[%clk 0:01:35.3]} 47. Ra4+
{[%clk 0:00:07.3]} 47... Ke3 {[%clk 0:01:35.7]} 48. c8=Q {[%clk 0:00:05.6]}
48... d1=Q+ {[%clk 0:01:34.2]} 0-1

[Event "*** Titled Tuesday Blitz"]
[Site "Chess.com"]
[Date "2020.10.20"]
[Round "3"]
[White "Hikaru"]
[Black "Lagmantr"]
[Result "1-0"]
[WhiteElo "3226"]
[BlackElo "2729"]
[TimeControl "180+1"]
[EndTime "10:28:15 PDT"]
[Termination "Hikaru won on time"]

1. Nf3 {[%clk 0:03:00.9]} 1... d5 {[%clk 0:02:45.3]} 2. e3 {[%clk 0:02:59.3]}
2... b6 {[%clk 0:02:42.9]} 3. c4 {[%clk 0:02:59]} 3... Bb7 {[%clk 0:02:43.6]} 4.
cxd5 {[%clk 0:02:59.1]} 4... Nf6 {[%clk 0:02:43.5]} 5. e4 {[%clk 0:02:58.2]}
5... c6 {[%clk 0:02:44]} 6. dxc6 {[%clk 0:02:56.8]} 6... Nxc6 {[%clk 0:02:44.9]}
7. Nc3 {[%clk 0:02:52.3]} 7... e5 {[%clk 0:02:44.9]} 8. Bb5 {[%clk 0:02:51.6]}
8... Bd6 {[%clk 0:02:44.7]} 9. d4 {[%clk 0:02:50]} 9... exd4 {[%clk 0:02:14.2]}
10. Nxd4 {[%clk 0:02:50.9]} 10... Rc8 {[%clk 0:02:13.9]} 11. Nf5 {[%clk
0:02:29.2]} 11... Bb4 {[%clk 0:01:57]} 12. Nxg7+ {[%clk 0:01:55.5]} 12... Kf8
{[%clk 0:01:56.7]} 13. Qxd8+ {[%clk 0:01:56.2]} 13... Nxd8 {[%clk 0:01:48.4]}
14. Bh6 {[%clk 0:01:55.8]} 14... Ng4 {[%clk 0:01:44.4]} 15. Ne6+ {[%clk
0:01:55.7]} 15... Ke7 {[%clk 0:01:44.3]} 16. Nxd8 {[%clk 0:01:56.3]} 16... Rhxd8
{[%clk 0:01:30.5]} 17. Bf4 {[%clk 0:01:36.8]} 17... a6 {[%clk 0:01:02.4]} 18.
Ba4 {[%clk 0:01:36.6]} 18... Rxc3 {[%clk 0:00:38.2]} 19. bxc3 {[%clk 0:01:37.5]}
19... Bxc3+ {[%clk 0:00:39.1]} 20. Ke2 {[%clk 0:01:37.1]} 20... Bxa1 {[%clk
0:00:39.4]} 21. Rxa1 {[%clk 0:01:38]} 21... Bxe4 {[%clk 0:00:39.8]} 22. f3
{[%clk 0:01:25.6]} 22... Bd3+ {[%clk 0:00:34.4]} 23. Ke1 {[%clk 0:01:25]} 23...
Nf6 {[%clk 0:00:34.5]} 24. Bb3 {[%clk 0:01:20.8]} 24... b5 {[%clk 0:00:31.3]}
25. Kf2 {[%clk 0:01:07.8]} 25... Bc4 {[%clk 0:00:26.4]} 26. Re1+ {[%clk
0:01:05.7]} 26... Kf8 {[%clk 0:00:20.4]} 27. Bh6+ {[%clk 0:01:05.6]} 27... Kg8
{[%clk 0:00:20.5]} 28. Re5 {[%clk 0:01:05.7]} 28... Rd5 {[%clk 0:00:13.1]} 29.
Re7 {[%clk 0:01:05.8]} 29... Bxb3 {[%clk 0:00:08]} 30. Ra7 {[%clk 0:00:59.5]}
30... Rd8 {[%clk 0:00:02.8]} 31. axb3 {[%clk 0:00:59.4]} 31... Nd5 {[%clk
0:00:03.3]} 32. Rxa6 {[%clk 0:00:57]} 32... Rc8 {[%clk 0:00:03.7]} 33. g4 {[%clk
0:00:55.1]} 33... f6 {[%clk 0:00:03.6]} 34. Ra7 {[%clk 0:00:55.2]} 34... Rc2+
{[%clk 0:00:03.1]} 35. Kg3 {[%clk 0:00:54.7]} 35... Rc3 {[%clk 0:00:03.5]} 36.
Rg7+ {[%clk 0:00:54.6]} 36... Kh8 {[%clk 0:00:04.1]} 37. Rd7 {[%clk 0:00:54.3]}
1-0